[Event "Hungarian Youth-ch U16 2022"]
[Site "Eger"]
[Date "2022.07.29"]
[Round "7.1"]
[White "Pasztor, Balazs"]
[Black "Kocsmar, Akos"]
[Result "1-0"]
[ECO "B12"]
[WhiteElo "2336"]
[BlackElo "2061"]
[Annotator "TA"]
[PlyCount "117"]
[EventDate "2022.07.21"]
[EventType "tourn"]
[EventCountry "HUN"]
[SourceTitle "playchess.com"]
[Source "ChessBase"]
[SourceQuality "1"]
[TimeControl "40/5400+30:1800+30"]

{[%evp 9,117,7,15,11,0,8,17,16,10,8,13,11,13,1,31,27,27,-13,0,-1,42,46,94,26,67,45,56,31,78,77,79,75,76,79,69,20,177,179,259,218,404,386,350,367,796,753,706,454,455,453,627,618,609,576,674,645,907,894,783,637,771,590,1016,1114,1159,998,1535,1022,7112,5681,29975,29976,3510,1846,1314,0,966,800,942,912,917,696,561,510,738,739,763,758,1005,947,6020,5747,29937,29939,5840,5306,1591,271,368,356,752,751,907,802,5297,5302,29981,29982,29990,29990]} 1. e4 {[%emt 0:02:02]} c6 {[%emt 0:00:40]} 2. d4 {[%emt 0:00:06]} d5 {[%emt 0:00:01]} 3. e5 {[%emt 0:00:07]} c5 {[%emt 0:00:05]} 4. Nf3 {[%emt 0:01:02]} cxd4 {[%emt 0:00:13]} 5. Nxd4 {[%emt 0:00:15]} Nc6 {[%emt 0:00:05]} 6. Nxc6 {[%emt 0:00:19] B12: Caro-Kann: Advance Variation.} bxc6 {[%emt 0:00:04]} 7. Bd3 {[%emt 0:00:08]} Qc7 {[%emt 0:00:04]} 8. Qe2 {[%emt 0:04:11] The position is equal.} e6 {[%emt 0:01:13]} 9. Nd2 {[%emt 0:03:25]} Bc5 {[%emt 0:00:12]} 10. O-O {[%emt 0:03:46]} Ne7 {[%emt 0:00:05]} 11. Nf3 {[%emt 0:02:04] [#]} Bb7 $146 {[%emt 0:01:01]} ({Predecessor:} 11... a5 12. Bf4 h6 13. c4 Ba6 14. Rac1 Qb6 15. b3 a4 16. Rb1 axb3 17. axb3 Qb7 {½-½ (62) Shaposhnikov,E (2588)-Mokshanov,A (2439) Ekaterinburg 2018}) 12. Bd2 {[%emt 0:13:00]} a5 {[%emt 0:04:43]} 13. c4 {[%emt 0:05:43]} dxc4 {[%emt 0:04:50]} 14. Bxc4 {[%emt 0:00:49]} Nd5 {[%emt 0:00:38]} 15. Rac1 {[%emt 0:04:29]} Qb6 {[%emt 0:05:36]} (15... Be7 $14) 16. Rc2 {[%emt 0:06:37]} (16. Ng5 $16) 16... Rd8 {[%emt 0:08:49]} 17. a3 {[%emt 0:06:08]} (17. Ng5 {looks sharper.} h6 18. Qh5 g6 19. Qh3) 17... h6 {[%emt 0:11:23]} 18. Rfc1 {[%emt 0:04:11]} (18. Qe1 $5 {[%cal Rd2a5]} Ra8 19. Qe4 $14) 18... Be7 {[%emt 0:03:53]} (18... Qa7 $1 $14 {was preferrable.}) 19. Qe1 $16 {[%emt 0:06:04]} Ra8 {[%emt 0:02:24]} 20. Bxd5 {[%emt 0:01:49]} cxd5 {[%emt 0:03:00] [#]} 21. Be3 $1 {[%emt 0:03:14] Prevents d4.} Qa6 {[%emt 0:00:56]} 22. b4 {[%emt 0:06:30] White is more active.} (22. Rc7 $14) 22... Bd8 $2 {[%emt 0:09:26] [#] Black is on the road to losing.} (22... axb4 $11 23. axb4 O-O) 23. Bc5 $1 $18 {[%emt 0:03:34]} Rc8 {[%emt 0:04:38]} (23... Bc6 $142 24. Nd4 Bb5) 24. Qe3 {[%emt 0:06:16]} g5 $2 {[%emt 0:06:23]} (24... axb4 25. axb4 Qa4) 25. Nd4 {[%emt 0:02:35] b5 is the strong threat.} axb4 {[%emt 0:00:36]} 26. axb4 {[%emt 0:02:41][%cal Ba3b4,Bb4b5][%mdl 32]} Kd7 $2 {[%emt 0:01:04]} (26... h5 27. Rc3 Qa4) 27. Qf3 {[%emt 0:01:28]} Rh7 {[%emt 0:00:19]} 28. b5 {[%emt 0:01:30]} Qa4 {[%emt 0:01:25][%cal Oc8c5]} 29. Qd3 {[%emt 0:00:28]} Rh8 {[%emt 0:01:25]} 30. h3 {[%emt 0:01:07][%cal Bh2h3,Bh3h4][%mdl 32]} h5 {[%emt 0:03:53]} 31. g3 {[%emt 0:03:51]} g4 {[%emt 0:01:41]} 32. h4 {[%emt 0:00:11]} Bc7 {[%emt 0:04:13]} 33. Qe3 {[%emt 0:00:53] Strongly threatening Qg5.} Bd8 {[%emt 0:03:02] Inhibits Qg5.} 34. Qf4 {[%emt 0:00:24]} Rh7 {[%emt 0:00:24]} 35. Kh2 {[%emt 0:01:21]} Ba8 {[%emt 0:00:12]} 36. Rc3 {[%emt 0:01:07]} Rxc5 {[%emt 0:01:59]} 37. Rxc5 {[%emt 0:00:05] Black must now prevent Rc8.} Bb6 {[%emt 0:00:03] [#]} 38. Qd2 $1 {[%emt 0:04:21]} Bxc5 {[%emt 0:00:22]} (38... Bb7 39. Qc3) 39. Rxc5 {[%emt 0:00:08] Threatening mate with b6.} Qa7 {[%emt 0:01:50]} 40. Qb4 {[%emt 0:00:00]} Qb6 {[%emt 0:00:00]} 41. Nc6 {[%emt 0:08:31][%cal Oc5d5]} Ke8 {[%emt 0:03:23]} 42. Nd4 $2 {[%emt 0:09:29]} (42. Kg1 $18) 42... Bb7 $2 {[%emt 0:00:19][%mdl 8192]} (42... Kd7 $11 43. Rc2 Rh8) 43. Rc2 {[%emt 0:01:16]} f6 {[%emt 0:01:26]} 44. exf6 {[%emt 0:02:07][%cal Ob4e1] aiming for Qe1!} Rf7 {[%emt 0:00:20]} 45. Re2 {[%emt 0:01:08]} Rxf6 {[%emt 0:00:03]} 46. Qd2 {[%emt 0:00:48]} Kd7 {[%emt 0:14:02]} 47. Kg1 {[%emt 0:01:43]} Qc5 {[%emt 0:05:39]} 48. Qe3 {[%emt 0:01:16] Threatens to win with Qe5.} Qb6 {[%emt 0:17:37]} 49. Qe5 {[%emt 0:00:29][%csl LRf6,LRh5]} Rg6 {[%emt 0:00:19]} 50. Kh2 {[%emt 0:01:08] White threatens Qh8 and mate.} Rg8 {[%emt 0:00:45] Against Qh8} 51. Nxe6 {[%emt 0:01:41]} Qd6 {[%emt 0:00:24]} 52. Qd4 {[%emt 0:01:38] White wants to mate with Qa7.} Re8 {[%emt 0:01:49]} 53. Nf4 $2 {[%emt 0:01:48]} (53. Qa7 Rxe6 54. Qxb7+ Ke8 55. Ra2) 53... Rxe2 {[%emt 0:01:44]} 54. Nxe2 {[%emt 0:00:06] KQB-KQN} Qe7 $2 {[%emt 0:02:19]} (54... Kc7 55. Nf4 Qb6) 55. Nf4 {[%emt 0:00:28][%csl LRd5,LRh5]} Qe1 {[%emt 0:00:02]} 56. Nxh5 {[%emt 0:00:44] And now Nf6+ would win.} Qf1 {[%emt 0:00:33]} 57. Nf6+ {[%emt 0:00:51]} Kd6 {[%emt 0:01:30]} 58. Qb6+ {[%emt 0:02:15]} Ke5 {[%emt 0:00:25]} 59. Nxg4+ {[%emt 0:00:20] Weighted Error Value: White=0.62/Black=1.02} 1-0

[Event "Hungarian Youth-ch U16 2022"]
[Site "Eger"]
[Date "2022.07.29"]
[Round "7.2"]
[White "Szikszai, Bertalan"]
[Black "Onodi, Tamas"]
[Result "1/2-1/2"]
[ECO "B29"]
[WhiteElo "2153"]
[BlackElo "2030"]
[Annotator "TA"]
[PlyCount "152"]
[EventDate "2022.07.21"]
[EventType "tourn"]
[EventCountry "HUN"]
[SourceTitle "playchess.com"]
[Source "ChessBase"]
[SourceQuality "1"]
[TimeControl "40/5400+30:1800+30"]

{[%evp 10,152,30,29,46,43,50,40,52,52,71,35,41,43,41,35,72,55,58,57,62,57,65,58,62,64,96,97,94,85,89,87,96,96,96,89,89,89,89,81,89,77,89,85,89,80,80,80,80,80,80,80,87,82,130,104,104,39,23,19,96,90,137,135,140,122,121,79,81,85,162,39,41,45,47,53,40,18,57,50,72,60,170,158,170,174,94,20,23,8,14,9,15,12,35,17,14,11,113,125,219,79,94,107,100,108,92,52,68,52,63,47,77,52,168,175,175,156,156,0,0,0,8,0,0,0,0,0,0,0,0,0,0,0,0,0,0,0,0,0,0,0,0,0,0]} 1. e4 {[%emt 0:00:36]} c5 {[%emt 0:00:53]} 2. Nf3 {[%emt 0:00:10]} Nf6 {[%emt 0:00:04]} 3. e5 {[%emt 0:00:21]} Nd5 {[%emt 0:00:02]} 4. Nc3 {[%emt 0:00:11]} e6 {[%emt 0:00:02]} 5. Ne4 {[%emt 0:00:12]} f5 {[%emt 0:13:12]} 6. Nc3 {[%emt 0:01:03]} Nxc3 {[%emt 0:06:14] 6...Ne7 gains popularity. B29: Sicilian: 2 Nf3 Nf6 (Nimzowitsch Variation).} 7. dxc3 {[%emt 0:00:22]} Be7 {[%emt 0:03:43]} 8. h4 {[%emt 0:05:03]} Nc6 {[%emt 0:04:59] White is slightly better.} 9. Bf4 {[%emt 0:16:50]} b6 {[%emt 0:02:32]} 10. Bd3 {[%emt 0:05:30]} Bb7 {[%emt 0:02:07]} 11. Qe2 {[%emt 0:07:50]} Qc7 {[%emt 0:08:31]} 12. O-O-O {[%emt 0:13:02]} O-O-O {[%emt 0:03:49]} 13. Rh3 {[%emt 0:01:35]} Kb8 {[%emt 0:11:49] [#]} 14. Ng5 $146 {[%emt 0:10:55]} (14. Rg3 Rhg8 15. Bc4 Na5 16. Ba6 Bxa6 17. Qxa6 h6 18. h5 Qc6 19. Kb1 Qe4 20. Bc1) ({Predecessor:} 14. Rg3 Rhg8 15. Bc4 Na5 16. Ba6 Bxa6 17. Qxa6 h6 18. h5 Qc6 19. Kb1 Qe4 20. Bc1 {0-1 (99) Netzer,J (2406)-Vitoux,C (2388) Haguenau 2013}) 14... Rdf8 {[%emt 0:11:52] Prevents Nf7.} 15. Rg3 {[%emt 0:06:57]} h6 {[%emt 0:02:59]} 16. Nf3 {[%emt 0:00:38]} Rhg8 {[%emt 0:04:19][%cal Oe7h4]} 17. h5 {[%emt 0:01:13]} Bd8 {[%emt 0:03:17]} 18. Bb5 {[%emt 0:02:15]} Bc8 {[%emt 0:04:26]} 19. Bc4 {[%emt 0:08:44]} Na5 {[%emt 0:03:13]} 20. Ba6 {[%emt 0:01:44]} Nc6 {[%emt 0:00:49]} 21. Bxc8 {[%emt 0:01:43] White is much more active. The black rooks are badly placed.} Kxc8 {[%emt 0:00:54]} 22. Qa6+ {[%emt 0:02:31]} Kb8 {[%emt 0:00:04]} 23. Qd3 {[%emt 0:00:30]} Rf7 {[%emt 0:01:40]} 24. a3 {[%emt 0:02:12]} Re8 {[%emt 0:01:20]} 25. c4 {[%emt 0:02:10]} Kc8 {[%emt 0:02:43]} 26. Qe3 {[%emt 0:01:29]} Na5 {[%emt 0:01:11]} 27. Qe2 {[%emt 0:03:22]} Qc6 {[%emt 0:00:58]} 28. b3 {[%emt 0:01:30]} Qe4 {[%emt 0:01:13]} 29. Qd2 {[%emt 0:00:41]} Qb7 {[%emt 0:01:09]} 30. Kb2 {[%emt 0:01:33]} a6 {[%emt 0:02:30]} 31. a4 {[%emt 0:00:27]} b5 {[%emt 0:01:19]} (31... Ref8 $142) 32. axb5 {[%emt 0:00:07]} axb5 {[%emt 0:00:06]} 33. cxb5 {[%emt 0:00:23]} ({White should try} 33. Ra1 $16 Nc6 34. Qd3) 33... Qxb5 $14 {[%emt 0:00:07] ...Nc4+ is the strong threat.} 34. Qc3 {[%emt 0:00:32] Inhibits Nc4+.} Bc7 {[%emt 0:00:33]} (34... Nc6 $11) 35. Ra1 $16 {[%emt 0:01:56]} Nc6 {[%emt 0:01:20]} ({Better is} 35... Kb7) 36. Ra8+ {[%emt 0:00:40]} Bb8 {[%emt 0:00:18]} 37. Nd2 {[%emt 0:01:04] aiming for Nc4.} Kb7 {[%emt 0:00:38]} 38. Rxb8+ {[%emt 0:00:25]} Kxb8 {[%emt 0:00:31]} (38... Nxb8 $2 39. Nc4 Kc7 40. Nd6 $18) 39. Nc4 {[%emt 0:00:10] Against Na5} Qb4 {[%emt 0:00:02]} (39... Ref8 $16) 40. Qxb4+ {[%emt 0:00:00]} (40. Qd3 $1 $18) 40... cxb4 $14 {[%emt 0:00:00]} 41. Nd6 $36 {[%emt 0:07:17][%csl LRe8,LRf7][%mdl 2048] Black is under pressure.} Ree7 {[%emt 0:02:43]} 42. Nxf7 {[%emt 0:00:43]} Rxf7 {[%emt 0:00:05][%mdl 4096] Endgame KRB-KRN} 43. c3 {[%emt 0:07:48]} bxc3+ {[%emt 0:17:44]} 44. Kxc3 {[%emt 0:00:24]} ({Of course not} 44. Rxc3 Nb4 $11) 44... Kc7 {[%emt 0:00:24]} 45. Kc4 {[%emt 0:00:57]} Kb6 {[%emt 0:03:36]} (45... Ne7 $14) 46. b4 $1 $18 {[%emt 0:01:52]} Ne7 {[%emt 0:02:36]} 47. Be3+ $1 {[%emt 0:01:12]} Kb7 {[%emt 0:00:34] [#]} (47... Kc7 $18) 48. Bc5 {[%emt 0:08:50]} (48. f4 $1 $16) 48... f4 $1 $11 {[%emt 0:04:02]} 49. Ra3 {[%emt 0:00:19]} Nc8 {[%emt 0:03:50] Prevents Ra7+.} 50. Rd3 {[%emt 0:03:01] And now Kb5 would win.} Kc7 {[%emt 0:00:18]} 51. Kd4 {[%emt 0:02:17]} Kc6 {[%emt 0:01:11]} 52. Ke4 {[%emt 0:00:53]} Rf5 {[%emt 0:00:02]} 53. Rc3 {[%emt 0:01:28]} d5+ {[%emt 0:00:52]} (53... Nb6 $11 {keeps the balance.}) 54. Kd4 $16 {[%emt 0:01:09] Strongly threatening Bd6+.} Kb7 {[%emt 0:01:16] [#]} (54... Rxh5 $16 {was worth a try.} 55. Bd6+ Kd7) 55. Bd6 {[%emt 0:00:28]} (55. g4 $1 $18 {[%cal Rg4f5]} Rf7 56. b5) 55... Na7 {[%emt 0:00:17]} 56. Rc7+ {[%emt 0:00:29]} Kb6 {[%emt 0:00:05] White must now prevent ...Nb5+.} 57. Rxg7 {[%emt 0:00:24] Hoping for Bc5+.} Nc6+ {[%emt 0:00:06]} 58. Kd3 {[%emt 0:00:20] Threatens to win with Rg6.} Rxh5 {[%emt 0:00:21]} 59. Bc5+ {[%emt 0:00:42]} Ka6 {[%emt 0:01:06]} 60. Rc7 {[%emt 0:00:34]} Nxe5+ {[%emt 0:00:53]} 61. Kd4 {[%emt 0:00:25]} f3 {[%emt 0:00:42]} (61... Kb5 $14) 62. Ra7+ $18 {[%emt 0:00:47][%mdl 1024] White has strong compensation.} Kb5 {[%emt 0:00:02]} 63. Ra5+ {[%emt 0:00:09]} Kc6 {[%emt 0:00:12]} 64. Ra6+ $2 {[%emt 0:00:39]} (64. b5+ $16 Kb7 65. Ra7+ Kb8 66. g4) 64... Kb7 $11 {[%emt 0:00:46] The position is equal.} 65. Rb6+ {[%emt 0:00:25]} Kc8 {[%emt 0:00:29]} 66. gxf3 {[%emt 0:00:32]} Nxf3+ {[%emt 0:00:02]} 67. Ke3 {[%emt 0:00:26]} Ng5 {[%emt 0:01:08]} 68. f4 {[%emt 0:00:44]} Rh3+ {[%emt 0:00:12]} 69. Ke2 {[%emt 0:00:14]} Rh2+ {[%emt 0:00:14]} 70. Ke3 {[%emt 0:00:23]} Rh3+ {[%emt 0:00:09]} 71. Ke2 {[%emt 0:00:58]} Rh2+ {[%emt 0:01:22]} 72. Kd1 {[%emt 0:00:14]} Ne4 {[%emt 0:00:30]} 73. Rxe6 {[%emt 0:00:15]} Nxc5 {[%emt 0:00:13]} 74. bxc5 {[%emt 0:00:13]} Rf2 {[%emt 0:00:06]} 75. Rxh6 {[%emt 0:00:45]} Rxf4 {[%emt 0:00:04]} 76. Rd6 {[%emt 0:00:35]} Kc7 {[%emt 0:00:18] Weighted Error Value: White=0.16 (very precise) /Black=0.19 (very precise)} 1/2-1/2

[Event "Hungarian Youth-ch U16 2022"]
[Site "Eger"]
[Date "2022.07.29"]
[Round "7.3"]
[White "Fule, Simon"]
[Black "Borzsei, Andras"]
[Result "1-0"]
[ECO "B48"]
[WhiteElo "2271"]
[BlackElo "2002"]
[Annotator "TA"]
[PlyCount "59"]
[EventDate "2022.07.21"]
[EventType "tourn"]
[EventCountry "HUN"]
[SourceTitle "playchess.com"]
[Source "ChessBase"]
[SourceQuality "1"]
[TimeControl "40/5400+30:1800+30"]

{[%evp 16,59,28,29,23,29,31,26,30,17,39,23,50,52,184,181,185,189,276,264,281,270,335,339,406,391,395,390,500,491,502,462,509,511,514,514,731,716,699,648,772,615,958,905,1449,1285]} 1. e4 {[%emt 0:00:33]} c5 {[%emt 0:00:41]} 2. Nf3 {[%emt 0:00:05]} e6 {[%emt 0:00:08]} 3. d4 {[%emt 0:00:09]} cxd4 {[%emt 0:00:05]} 4. Nxd4 {[%emt 0:00:07]} Nc6 {[%emt 0:00:05]} 5. Nc3 {[%emt 0:00:20]} Qc7 {[%emt 0:00:09]} 6. Be3 {[%emt 0:00:08]} a6 {[%emt 0:00:04]} 7. a3 {[%emt 0:00:18]} b5 {[%emt 0:00:18]} 8. Nxc6 {[%emt 0:00:13]} Qxc6 {[%emt 0:00:06]} 9. Be2 {[%emt 0:00:16] 9.Bd3 is the modern continuation.} Bb7 {[%emt 0:00:06] B49: Sicilian: Taimanov: 5 Nc3 Qc7 6 Be3 a6 7 Be2.} 10. O-O {[%emt 0:00:53]} Rc8 {[%emt 0:00:35]} 11. Qd3 $1 {[%emt 0:01:00]} Nf6 {[%emt 0:04:04][%cal Rf6e4] White has an edge.} 12. Rfd1 {[%emt 0:06:39]} Qc7 {[%emt 0:01:03] Against Bf4} 13. Bf3 {[%emt 0:13:06]} h5 {[%emt 0:00:50]} 14. h3 {[%emt 0:07:55] [#]} Be7 $146 {[%emt 0:21:43] [#]} (14... Bc5) (14... Bc5 $14) ({Predecessor:} 14... e5 15. Rd2 Bc5 16. Nd1 Bxe3 17. Nxe3 g6 18. Nd1 Qc4 19. Nc3 Qxd3 20. Rxd3 Ke7 {½-½ (39) Petrova,K (2257)-Koutoukidis,P (2332) Heraklion 2018}) 15. e5 $1 $18 {[%emt 0:22:19]} Bxf3 {[%emt 0:49:18]} 16. exf6 {[%emt 0:01:41]} gxf6 {[%emt 0:00:41]} (16... Bxd1 $142 17. fxg7 (17. fxe7 Bg4 $11) 17... Rg8) 17. gxf3 {[%emt 0:02:02]} d5 {[%emt 0:00:33]} 18. Kh1 {[%emt 0:18:06]} Qb8 {[%emt 0:03:12]} 19. Ne2 {[%emt 0:04:38]} Rc4 {[%emt 0:00:51]} 20. Nd4 {[%emt 0:01:16]} Qc8 {[%emt 0:01:13]} 21. c3 {[%emt 0:05:28]} a5 {[%emt 0:08:15]} 22. Rg1 {[%emt 0:04:25] White is clearly winning.} Qd7 {[%emt 0:01:25]} 23. Rad1 {[%emt 0:02:00]} Bd6 {[%emt 0:02:05]} 24. b3 {[%emt 0:02:09][%cal Bb2b3,Bb3b4][%mdl 32]} Rc5 {[%emt 0:00:24] [#]} 25. Nf5 $1 {[%emt 0:03:10][%mdl 512]} Rc7 {[%emt 0:02:04]} (25... exf5 26. Bxc5) 26. Nxd6+ {[%emt 0:00:41]} Qxd6 {[%emt 0:00:02]} 27. Qxb5+ {[%emt 0:00:09]} Ke7 {[%emt 0:00:03]} 28. b4 {[%emt 0:02:43]} Qe5 {[%emt 0:00:35]} 29. Bc5+ {[%emt 0:00:53]} Kd8 {[%emt 0:00:59]} 30. Qb8+ {[%emt 0:00:20] Black did not feel at home in the position after the opening.  Weighted Error Value: White=0.09 (flawless) /Black=0.48} 1-0

[Event "Hungarian Youth-ch U16 2022"]
[Site "Eger"]
[Date "2022.07.29"]
[Round "7.4"]
[White "Muranyi, Peter"]
[Black "Tran, David"]
[Result "1-0"]
[ECO "A69"]
[WhiteElo "2018"]
[BlackElo "2090"]
[Annotator "TA"]
[PlyCount "51"]
[EventDate "2022.07.21"]
[EventType "tourn"]
[EventCountry "HUN"]
[SourceTitle "playchess.com"]
[Source "ChessBase"]
[SourceQuality "1"]
[TimeControl "40/5400+30:1800+30"]

{[%evp 27,51,-14,0,-39,-31,-107,-106,-121,-141,-118,-51,-103,-145,-153,0,-95,284,155,189,204,206,30,663,659,1241,1173]} 1. d4 {[%emt 0:01:32]} Nf6 {[%emt 0:00:33]} 2. c4 {[%emt 0:00:45]} g6 {[%emt 0:00:04]} 3. Nc3 {[%emt 0:00:25]} Bg7 {[%emt 0:00:07]} 4. e4 {[%emt 0:00:12]} d6 {[%emt 0:00:04]} 5. f4 {[%emt 0:00:07]} c5 {[%emt 0:03:11]} 6. d5 {[%emt 0:00:21]} e6 {[%emt 0:06:43]} 7. Nf3 {[%emt 0:00:28]} exd5 {[%emt 0:00:55]} 8. cxd5 {[%emt 0:00:11]} O-O {[%emt 0:00:50]} 9. Be2 {[%emt 0:00:22]} Re8 {[%emt 0:03:34]} 10. e5 {[%emt 0:00:09]} dxe5 {[%emt 0:01:42]} 11. fxe5 {[%emt 0:00:26]} Ng4 {[%emt 0:01:29]} 12. Bg5 {[%emt 0:00:31]} Qa5 {[%emt 0:02:39]} (12... f6 13. Bf4 Nxe5 14. Nxe5 fxe5 15. Be3) (12... Qb6 13. Qd2 (13. Qa4 Bd7) 13... Nxe5 14. Nxe5 Bxe5) 13. O-O {[%emt 0:09:03]} (13. e6) 13... Nxe5 {[%emt 0:04:21]} 14. Nxe5 {[%emt 0:05:15]} Bxe5 {[%emt 0:02:02]} 15. Bb5 {[%emt 0:19:18] A69: Modern Benoni: Four Pawns Attack with 9...Re8.} (15. Kh1) (15. Kh1 $5 {[%cal Re2c4]}) 15... Bd7 {[%emt 0:02:35] [#]} 16. Bxd7 $146 {[%emt 0:26:40]} (16. a4) ({White should try} 16. Qf3 $15 f5 17. Be2) ({Predecessor:} 16. Qf3 f6 17. Ne4 Bxb5 18. Nxf6+ Bxf6 19. Qxf6 Bxf1 20. Rxf1 Qc7 21. Bh6 Na6 22. d6 Qd7 23. Qf3 Rab8 24. Qb3+ c4 25. Qxc4+ Re6 26. Qf4 Ree8 27. Qc4+ Re6 28. Qf4 {½-½ (28) Mahecic,L (1854)-Markovic,D (2166) Grohote 2019}) 16... Nxd7 $17 {[%emt 0:00:38]} 17. Qf3 {[%emt 0:02:58] Black is better.} Bd4+ {[%emt 0:12:34]} 18. Kh1 {[%emt 0:00:13]} Ne5 {[%emt 0:00:08]} (18... f6 19. Rab1 Qa6) (18... f6 $1 $17 19. Rab1 Qb6) 19. Qh3 {[%emt 0:03:54]} (19. Qf6) (19. Qf6 $15) 19... f5 {[%emt 0:04:06]} 20. d6 {[%emt 0:02:59]} c4 $2 {[%emt 0:15:45]} (20... Nf7 $1 $17 {[%cal Rf7g5]} 21. d7 Re6) 21. Bf6 {[%emt 0:09:05]} (21. Rad1 Bxc3 22. bxc3) (21. Rad1 $11 Bxc3 22. bxc3) 21... Nc6 $2 {[%emt 0:07:37][%mdl 8192]} (21... Re6 22. Ne4 Nf7 23. Bxd4 Rxe4) (21... Re6 $17 {keeps the pressure on.} 22. Ne4 Nf7 $1 23. Bxd4 Rxe4) 22. Bxd4 $18 {[%emt 0:02:10]} Nxd4 {[%emt 0:00:14] [#]} 23. Rad1 $1 {[%emt 0:01:35]} Nc6 {[%emt 0:11:13] [#]} 24. Qh4 $2 {[%emt 0:01:56]} (24. Nd5 Re5 25. Nf6+ Kg7 26. Qxh7+ (26. Qh4 Qd8) 26... Kxf6 27. g4 (27. Qxb7 Rd8)) (24. Nd5 $1 $18 {Hoping for g4.} Re2 25. Qh4) 24... Ne5 {[%emt 0:02:09][%mdl 8192] Prevents g4.} (24... Rad8 $11) 25. d7 {[%emt 0:02:51]} Re6 {[%emt 0:06:04]} 26. d8=Q+ {Weighted Error Value: White=0.40/Black=1.58} 1-0

[Event "Hungarian Youth-ch U16 2022"]
[Site "Eger"]
[Date "2022.07.29"]
[Round "7.5"]
[White "Bodo, Boglarka"]
[Black "Karacsonyi, Kata"]
[Result "0-1"]
[ECO "A00"]
[WhiteElo "1722"]
[BlackElo "2147"]
[Annotator "TA"]
[PlyCount "48"]
[EventDate "2022.07.21"]
[EventType "tourn"]
[EventCountry "HUN"]
[SourceTitle "playchess.com"]
[Source "ChessBase"]
[SourceQuality "1"]
[TimeControl "40/5400+30:1800+30"]

{[%evp 16,48,-26,-32,-29,-50,-29,-176,-176,-181,-164,-172,-165,-175,-165,-197,-202,-258,-250,-246,-191,-249,-253,-243,-259,-247,-252,-370,-377,-380,-380,-701,-694,-668,-631]} 1. g3 {[%emt 0:05:47]} c5 {[%emt 0:00:55]} 2. Bg2 {[%emt 0:00:19]} Nc6 {[%emt 0:00:29]} 3. d3 {[%emt 0:00:53]} g6 {[%emt 0:02:23]} 4. e4 {[%emt 0:02:35]} Bg7 {[%emt 0:00:28]} 5. Ne2 {[%emt 0:00:34]} e6 {[%emt 0:01:10]} 6. f4 {[%emt 0:01:56]} Nge7 {[%emt 0:02:10]} 7. Nd2 {[%emt 0:02:11]} d5 {[%emt 0:02:08]} 8. c3 {[%emt 0:11:55]} O-O {[%emt 0:07:26]} 9. O-O {[%emt 0:02:43]} b6 {[%emt 0:03:58] B20: Sicilian: Unusual White 2nd moves.} 10. Nf3 {[%emt 0:06:03]} Ba6 {[%emt 0:01:52][%cal Bc8a6,Ba6d3,Bd3e4,Be4d5][%mdl 32] [#] White must now prevent ...dxe4.} 11. Qc2 {[%emt 0:06:32]} (11. e5 $11) 11... dxe4 $19 {[%emt 0:00:53] Black is clearly better.} 12. dxe4 {[%emt 0:01:49]} Bd3 {[%emt 0:00:12]} 13. Qd2 {[%emt 0:00:27]} Bxe4 {[%emt 0:00:13] [#]} 14. Qe3 $146 {[%emt 0:01:53]} ({Predecessor:} 14. Qe1 Qc7 15. g4 Rad8 16. Qh4 Bd3 17. Re1 Nd5 18. Ng5 h6 19. Nh3 b5 20. Qg3 {0-1 (65) Sukha,T-Romanchuk,V Kiev 1999}) 14... Bd5 $36 {[%emt 0:05:44][%mdl 2048] White is under strong pressure.} 15. Rd1 {[%emt 0:00:59]} Qc7 {[%emt 0:00:35]} 16. b3 {[%emt 0:06:10]} Rad8 {[%emt 0:03:40]} 17. Bb2 {[%emt 0:01:16]} c4 {[%emt 0:11:58]} 18. Ned4 {[%emt 0:04:25]} (18. bxc4 $142 Bxc4 19. Ned4) 18... Nxd4 {[%emt 0:04:03]} 19. Nxd4 {[%emt 0:00:58]} Bxg2 {[%emt 0:02:06]} 20. Kxg2 {[%emt 0:00:13]} Rd7 {[%emt 0:07:12]} 21. Ba3 {[%emt 0:04:00]} (21. bxc4 {was worth a try.} Qxc4 22. Qd3) 21... Nd5 {[%emt 0:11:51]} ({Wrong is} 21... Bxd4 $2 22. cxd4 Nf5 23. Qe4 $19) 22. Qf3 {[%emt 0:00:55]} Rfd8 {[%emt 0:01:17][%cal Od5c3] [#] And now ...Nxc3! would win.} 23. Nb5 {[%emt 0:05:06]} (23. Rac1) 23... Qc6 {[%emt 0:01:24][%csl LRb5,LRc3] ( -> ...Ne3+)} 24. Nd4 {[%emt 0:00:09]} Ne3+ {[%emt 0:00:10] White got outplayed after the opening.  Weighted Error Value: White=0.60/Black=0.05 (flawless)} 0-1